fUST/lending_fUST_20250628
["ID","MTS","AMOUNT","RATE_DAILY","PERIOD"]
[368257916,1751077833066,-460.0,0.00019178,2]
[368257918,1751077833077,-460.0,0.00019178,2]
[368257920,1751077833090,-460.0,0.00019178,2]
[368257922,1751077833101,-460.0,0.00019178,2]
[368257924,1751077833113,-460.0,0.00019178,2]
[368257926,1751077833125,-460.0,0.00019178,2]
[368257929,1751077833136,-463.78288043,0.00019178,2]
[368257931,1751077833146,-460.0,0.00019178,2]
[368257933,1751077833157,-463.45570719,0.00019178,2]
[368257935,1751077833168,-460.0,0.00019178,2]
[368257937,1751077833180,-521.35,0.00019178,2]
[368257939,1751077833191,-460.0,0.00019178,2]
[368257941,1751077833204,-460.0,0.00019178,2]
[368257943,1751077833218,-460.0,0.00019178,2]
[368257945,1751077833229,-460.0,0.00019178,2]
[368257946,1751077833239,-460.0,0.00019178,2]
[368257947,1751077833251,-463.350638,0.00019178,2]
[368257948,1751077833261,-460.0,0.00019178,2]
[368257949,1751077833272,-460.0,0.00019178,2]
[368257950,1751077833282,-348.23667917,0.00019178,2]
[368257951,1751077833295,-460.0,0.00019178,2]
[368257952,1751077833305,-460.0,0.00019178,2]
[368257953,1751077833316,-460.0,0.00019178,2]
[368257954,1751077833327,-213.13070302,0.00019178,2]
[368257955,1751077833338,-460.0,0.00019178,2]
[368257956,1751077833348,-460.0,0.00019178,2]
[368257957,1751077833360,-403.9456696,0.00019178,2]
[368257958,1751077833371,-460.0,0.00019178,2]
[368257959,1751077833383,-467.16918841,0.00019178,2]
[368257960,1751077833394,-460.0,0.00019178,2]
[368257961,1751077833405,-460.0,0.00019178,2]
[368257962,1751077833417,-460.0,0.00019178,2]
[368257963,1751077833428,-460.0,0.00019178,2]
[368257964,1751077833439,-460.0,0.00019178,2]
[368257965,1751077833450,-460.0,0.00019178,2]
[368257966,1751077833459,-460.0,0.00019178,2]
[368257967,1751077833470,-460.0,0.00019178,2]
[368257968,1751077833481,-460.0,0.00019178,2]
[368257969,1751077833491,-460.0,0.00019178,2]
[368257970,1751077833501,-460.0,0.00019178,2]
[368257971,1751077833512,-460.0,0.00019178,2]
[368257972,1751077833522,-382.14074528,0.00019178,2]
[368257973,1751077833533,-460.0,0.00019178,2]
[368257974,1751077833544,-460.0,0.00019178,2]
[368257975,1751077833555,-460.0,0.00019178,2]
[368257976,1751077833566,-460.0,0.00019178,2]
[368257977,1751077833576,-460.0,0.00019178,2]
[368257978,1751077833587,-467.08957979,0.00019178,2]
[368257979,1751077833598,-460.0,0.00019178,2]
[368257980,1751077833608,-460.0,0.00019178,2]
[368257981,1751077833619,-460.0,0.00019178,2]
[368257982,1751077833629,-460.0,0.00019178,2]
[368257983,1751077833641,-460.0,0.00019178,2]
[368257984,1751077833652,-535.75104021,0.00019178,2]
[368257985,1751077833663,-460.0,0.00019178,2]
[368257986,1751077833673,-460.0,0.00019178,2]
[368257987,1751077833684,-460.0,0.00019178,2]
[368257988,1751077833695,-460.0,0.00019178,2]
[368257989,1751077833706,-460.0,0.00019178,2]
[368257990,1751077833716,-460.0,0.00019178,2]
[368257991,1751077833727,-460.0,0.00019178,2]
[368257992,1751077833737,-461.21268209,0.00019178,2]
[368257993,1751077833747,-888.08,0.00019178,2]
[368257994,1751077833759,-460.0,0.00019178,2]
[368257995,1751077833770,-864.73,0.00019178,2]
[368257996,1751077833780,-460.0,0.00019178,2]
[368257997,1751077833791,-480.48,0.00019178,2]
[368257998,1751077833801,-460.0,0.00019178,2]
[368257999,1751077833812,-460.0,0.00019178,2]
[368258000,1751077833822,-460.0,0.00019178,2]
[368258001,1751077833833,-460.0,0.00019178,2]
[368258002,1751077833843,-205.69896263,0.00019178,2]
[368258003,1751077833858,-298.87880583,0.00019178,2]
[368258004,1751077833869,-69.01931888,0.00019178,2]
[368258011,1751077838206,-465.17392635,0.00019176,2]
[368258012,1751077838220,-390.98068112,0.00019178,2]
[368258013,1751077838231,-1050.91,0.00019178,2]
[368258014,1751077838240,-460.0,0.00019178,2]
[368258015,1751077838250,-460.0,0.00019178,2]
[368258016,1751077838260,-460.0,0.00019178,2]
[368258017,1751077838271,-460.0,0.00019178,2]
[368258018,1751077838281,-460.0,0.00019178,2]
[368258019,1751077838291,-950.9,0.00019178,2]
[368258020,1751077838301,-460.0,0.00019178,2]
[368258021,1751077838312,-460.0,0.00019178,2]
[368258022,1751077838323,-619.04,0.00019178,2]
[368258023,1751077838332,-460.0,0.00019178,2]
[368258024,1751077838341,-460.0,0.00019178,2]
[368258025,1751077838354,-460.0,0.00019178,2]
[368258026,1751077838364,-460.0,0.00019178,2]
[368258027,1751077838373,-460.0,0.00019178,2]
[368258028,1751077838383,-460.0,0.00019178,2]
[368258029,1751077838393,-460.0,0.00019178,2]
[368258030,1751077838403,-460.0,0.00019178,2]
[368258031,1751077838412,-460.0,0.00019178,2]
[368258032,1751077838422,-460.0,0.00019178,2]
[368258033,1751077838431,-460.0,0.00019178,2]
[368258034,1751077838441,-374.2504009,0.00019178,2]
[368258035,1751077838451,-460.0,0.00019178,2]
[368258036,1751077838460,-460.0,0.00019178,2]
[368258037,1751077838470,-460.0,0.00019178,2]
[368258038,1751077838480,-460.0,0.00019178,2]
[368258039,1751077838489,-460.0,0.00019178,2]
[368258040,1751077838499,-460.0,0.00019178,2]
[368258041,1751077838509,-460.0,0.00019178,2]
[368258042,1751077838518,-460.0,0.00019178,2]
[368258043,1751077838527,-460.0,0.00019178,2]
[368258044,1751077838537,-460.0,0.00019178,2]
[368258045,1751077838546,-460.0,0.00019178,2]
[368258046,1751077838556,-1094.57,0.00019178,2]
[368258047,1751077838566,-830.26,0.00019178,2]
[368258048,1751077838575,-460.0,0.00019178,2]
[368258049,1751077838584,-460.0,0.00019178,2]
[368258050,1751077838594,-460.0,0.00019178,2]
[368258051,1751077838604,-460.0,0.00019178,2]
[368258052,1751077838613,-1073.32,0.00019178,2]
[368258053,1751077838623,-460.0,0.00019178,2]
[368258054,1751077838632,-467.24779098,0.00019178,2]
[368258055,1751077838641,-460.0,0.00019178,2]
[368258056,1751077838651,-460.0,0.00019178,2]
[368258057,1751077838660,-460.0,0.00019178,2]
[368258058,1751077838670,-801.69,0.00019178,2]
[368258059,1751077838680,-460.0,0.00019178,2]
[368258060,1751077838689,-460.0,0.00019178,2]
[368258061,1751077838699,-460.0,0.00019178,2]
[368258062,1751077838708,-2284.18,0.00019178,2]
[368258063,1751077838718,-460.0,0.00019178,2]
[368258064,1751077838727,-460.0,0.00019178,2]
[368258065,1751077838737,-460.0,0.00019178,2]
[368258066,1751077838747,-460.0,0.00019178,2]
[368258067,1751077838757,-460.0,0.00019178,2]
[368258068,1751077838766,-460.0,0.00019178,2]
[368258069,1751077838776,-592.17,0.00019178,2]
[368258070,1751077838785,-460.0,0.00019178,2]
[368258071,1751077838797,-460.0,0.00019178,2]
[368258072,1751077838808,-460.0,0.00019178,2]
[368258073,1751077838818,-460.0,0.00019178,2]
[368258074,1751077838827,-460.0,0.00019178,2]
[368258075,1751077838837,-460.0,0.00019178,2]
[368258076,1751077838846,-468.72,0.00019178,2]
[368258077,1751077838855,-460.0,0.00019178,2]
[368258078,1751077838865,-460.0,0.00019178,2]
[368258079,1751077838874,-460.0,0.00019178,2]
[368258080,1751077838884,-460.0,0.00019178,2]
[368258081,1751077838893,-460.0,0.00019178,2]
[368258082,1751077838903,-460.0,0.00019178,2]
[368258083,1751077838913,-460.0,0.00019178,2]
[368258084,1751077838923,-460.0,0.00019178,2]
[368258085,1751077838932,-460.0,0.00019178,2]
[368258086,1751077838941,-460.0,0.00019178,2]
[368258087,1751077838952,-460.0,0.00019178,2]
[368258088,1751077838964,-743.7,0.00019178,2]
[368258089,1751077838975,-460.0,0.00019178,2]
[368258090,1751077838984,-460.0,0.00019178,2]
[368258091,1751077838994,-460.0,0.00019178,2]
[368258092,1751077839004,-460.0,0.00019178,2]
[368258093,1751077839014,-2148.11,0.00019178,2]
[368258094,1751077839023,-460.0,0.00019178,2]
[368258095,1751077839033,-245.65382674,0.00019178,2]
[368258096,1751077839043,-460.0,0.00019178,2]
[368258097,1751077839052,-460.0,0.00019178,2]
[368258098,1751077839062,-460.0,0.00019178,2]
[368258099,1751077839071,-515.50846539,0.00019178,2]
[368258100,1751077839081,-460.0,0.00019178,2]
[368258101,1751077839090,-460.0,0.00019178,2]
[368258102,1751077839100,-460.0,0.00019178,2]
[368258103,1751077839109,-461.33036025,0.00019178,2]
[368258104,1751077839119,-460.0,0.00019178,2]
[368258105,1751077839128,-460.0,0.00019178,2]
[368258106,1751077839138,-460.0,0.00019178,2]
[368258107,1751077839147,-460.0,0.00019178,2]
[368258108,1751077839157,-460.0,0.00019178,2]
[368258109,1751077839166,-460.0,0.00019178,2]
[368258110,1751077839176,-460.0,0.00019178,2]
[368258111,1751077839185,-684.07,0.00019178,2]
[368258112,1751077839194,-460.0,0.00019178,2]
[368258113,1751077839204,-686.94,0.00019178,2]
[368258114,1751077839216,-461.51193453,0.00019178,2]
[368258115,1751077839225,-460.0,0.00019178,2]
[368258116,1751077839234,-460.0,0.00019178,2]
[368258117,1751077839243,-460.0,0.00019178,2]
[368258118,1751077839252,-461.98877348,0.00019178,2]
[368258119,1751077839262,-750.65,0.00019178,2]
[368258120,1751077839271,-460.0,0.00019178,2]
[368258121,1751077839280,-460.0,0.00019178,2]
[368258122,1751077839292,-463.54900494,0.00019178,2]
[368258123,1751077839302,-460.0,0.00019178,2]
[368258124,1751077839311,-833.48,0.00019178,2]
[368258125,1751077839320,-460.0,0.00019178,2]
[368258126,1751077839329,-460.0,0.00019178,2]
[368258127,1751077839338,-460.0,0.00019178,2]
[368258128,1751077839348,-460.0,0.00019178,2]
[368258129,1751077839357,-500.0,0.00019178,2]
[368258130,1751077839366,-460.0,0.00019178,2]
[368258131,1751077839376,-460.0,0.00019178,2]
[368258132,1751077839385,-460.0,0.00019178,2]
[368258133,1751077839394,-460.0,0.00019178,2]
[368258134,1751077839404,-296.15739094,0.00019178,2]
[368258135,1751077839413,-851.08,0.00019178,2]
[368258136,1751077839423,-465.81920517,0.00019178,2]
[368258137,1751077839433,-460.0,0.00019178,2]
[368258138,1751077839442,-460.0,0.00019178,2]
[368258139,1751077839451,-174.434729,0.00019178,2]
[368258140,1751077839460,-500.01664919,0.00019178,2]
[368258141,1751077839470,-308.26151159,0.00019406,2]
[368258142,1751077839479,-162.19690601,0.00019452,2]
[368258143,1751077839488,-460.0,0.00019452,2]
[368258144,1751077839499,-460.0,0.00019452,2]
[368258145,1751077839508,-460.0,0.00019452,2]
[368258146,1751077839518,-460.0,0.00019452,2]
[368258147,1751077839527,-480.8086001,0.00019452,2]
[368258148,1751077839537,-460.0,0.00019452,2]
[368258149,1751077839546,-460.0,0.00019452,2]
[368258150,1751077839556,-460.0,0.00019452,2]
[368258151,1751077839565,-460.0,0.00019452,2]
[368258152,1751077839575,-467.76737903,0.00019452,2]
[368258153,1751077839584,-460.0,0.00019452,2]
[368258154,1751077839595,-206.99051486,0.00019452,2]
[368258155,1751077839606,-460.0,0.00019452,2]
[368258156,1751077839615,-460.0,0.00019452,2]
[368258157,1751077839625,-460.0,0.00019452,2]
[368258158,1751077839634,-460.0,0.00019452,2]
[368258159,1751077839643,-460.0,0.00019452,2]
[368258160,1751077839654,-460.0,0.00019452,2]
[368258161,1751077839664,-460.0,0.00019452,2]
[368258162,1751077839673,-460.0,0.00019452,2]
[368258163,1751077839682,-460.0,0.00019452,2]
[368258164,1751077839692,-460.0,0.00019452,2]
[368258165,1751077839708,-460.0,0.00019452,2]
[368258166,1751077839720,-460.0,0.00019452,2]
[368258167,1751077839729,-460.0,0.00019452,2]
[368258168,1751077839739,-460.0,0.00019452,2]
[368258169,1751077839748,-507.14709272,0.00019452,2]
[368258170,1751077839758,-360.0,0.00019452,2]
[368258171,1751077839767,-460.0,0.00019452,2]
[368258172,1751077839777,-864.73,0.00019452,2]
[368258173,1751077839786,-460.0,0.00019452,2]
[368258174,1751077839796,-480.48,0.00019452,2]
[368258175,1751077839805,-460.0,0.00019452,2]
[368258176,1751077839814,-548.98800195,0.00019452,2]
[368258177,1751077839824,-460.0,0.00019452,2]
[368258178,1751077839834,-460.0,0.00019452,2]
[368258179,1751077839843,-1050.91,0.00019452,2]
[368258180,1751077839852,-460.0,0.00019452,2]
[368258181,1751077839861,-460.0,0.00019452,2]
[368258182,1751077839871,-463.40462621,0.00019452,2]
[368258183,1751077839881,-460.0,0.00019452,2]
[368258184,1751077839891,-460.0,0.00019452,2]
[368258185,1751077839900,-950.9,0.00019452,2]
[368258186,1751077839910,-460.0,0.00019452,2]
[368258187,1751077839920,-619.04,0.00019452,2]
[368258188,1751077839930,-460.0,0.00019452,2]
[368258189,1751077839940,-460.0,0.00019452,2]
[368258190,1751077839950,-460.0,0.00019452,2]
[368258191,1751077839959,-460.0,0.00019452,2]
[368258192,1751077839969,-460.0,0.00019452,2]
[368258194,1751077839979,-460.0,0.00019452,2]
[368258196,1751077839988,-460.0,0.00019452,2]
[368258198,1751077839998,-460.0,0.00019452,2]
[368258200,1751077840007,-460.0,0.00019452,2]
[368258202,1751077840017,-460.0,0.00019452,2]
[368258204,1751077840027,-460.0,0.00019452,2]
[368258206,1751077840036,-460.0,0.00019452,2]
[368258208,1751077840046,-460.0,0.00019452,2]
[368258210,1751077840055,-541.28,0.00019452,2]
[368258212,1751077840065,-460.0,0.00019452,2]
[368258214,1751077840074,-460.0,0.00019452,2]
[368258216,1751077840083,-460.0,0.00019452,2]
[368258218,1751077840093,-460.0,0.00019452,2]
[368258219,1751077840102,-460.0,0.00019452,2]
[368258220,1751077840112,-460.0,0.00019452,2]
[368258221,1751077840123,-460.0,0.00019452,2]
[368258222,1751077840133,-1094.57,0.00019452,2]
[368258223,1751077840143,-830.26,0.00019452,2]
[368258224,1751077840152,-460.0,0.00019452,2]
[368258225,1751077840162,-460.0,0.00019452,2]
[368258226,1751077840172,-460.0,0.00019452,2]
[368258227,1751077840181,-460.0,0.00019452,2]
[368258228,1751077840191,-1073.32,0.00019452,2]
[368258229,1751077840200,-460.0,0.00019452,2]
[368258230,1751077840211,-460.0,0.00019452,2]
[368258231,1751077840222,-801.69,0.00019452,2]
[368258232,1751077840232,-460.0,0.00019452,2]
[368258233,1751077840241,-460.0,0.00019452,2]
[368258234,1751077840250,-460.0,0.00019452,2]
[368258235,1751077840260,-2284.18,0.00019452,2]
[368258236,1751077840269,-460.0,0.00019452,2]
[368258238,1751077840279,-460.0,0.00019452,2]
[368258240,1751077840288,-460.0,0.00019452,2]
[368258242,1751077840297,-460.0,0.00019452,2]
[368258245,1751077840307,-460.0,0.00019452,2]
[368258247,1751077840316,-592.17,0.00019452,2]
[368258249,1751077840326,-460.0,0.00019452,2]
[368258251,1751077840335,-460.0,0.00019452,2]
[368258253,1751077840345,-460.0,0.00019452,2]
[368258254,1751077840354,-460.0,0.00019452,2]
[368258255,1751077840363,-460.0,0.00019452,2]
[368258256,1751077840373,-460.0,0.00019452,2]
[368258257,1751077840382,-471.47923443,0.00019452,2]
[368258259,1751077840392,-460.0,0.00019452,2]
[368258261,1751077840401,-460.0,0.00019452,2]
[368258263,1751077840411,-460.0,0.00019452,2]
[368258265,1751077840421,-460.0,0.00019452,2]
[368258267,1751077840430,-460.0,0.00019452,2]
[368258270,1751077840440,-390.0,0.00019452,2]
[368258272,1751077840450,-460.0,0.00019452,2]
[368258274,1751077840460,-460.0,0.00019452,2]
[368258276,1751077840470,-460.0,0.00019452,2]
[368258278,1751077840479,-743.7,0.00019452,2]
[368258280,1751077840489,-460.0,0.00019452,2]
[368258282,1751077840499,-460.0,0.00019452,2]
[368258284,1751077840508,-552.32044675,0.00019452,2]
[368258286,1751077840519,-460.0,0.00019452,2]
[368258288,1751077840528,-2148.11,0.00019452,2]
[368258290,1751077840537,-460.0,0.00019452,2]
[368258292,1751077840547,-460.0,0.00019452,2]
[368258294,1751077840557,-460.0,0.00019452,2]
[368258296,1751077840567,-460.0,0.00019452,2]
[368258298,1751077840576,-460.0,0.00019452,2]
[368258299,1751077840586,-460.0,0.00019452,2]
[368258301,1751077840596,-460.0,0.00019452,2]
[368258304,1751077840607,-460.0,0.00019452,2]
[368258306,1751077840616,-460.0,0.00019452,2]
[368258308,1751077840626,-460.0,0.00019452,2]
[368258310,1751077840635,-460.0,0.00019452,2]
[368258311,1751077840645,-460.0,0.00019452,2]
[368258313,1751077840654,-460.0,0.00019452,2]
[368258315,1751077840663,-684.07,0.00019452,2]
[368258317,1751077840673,-460.0,0.00019452,2]
[368258320,1751077840683,-686.94,0.00019452,2]
[368258321,1751077840692,-460.0,0.00019452,2]
[368258323,1751077840702,-460.0,0.00019452,2]
[368258325,1751077840711,-750.65,0.00019452,2]
[368258327,1751077840721,-460.0,0.00019452,2]
[368258329,1751077840731,-460.0,0.00019452,2]
[368258332,1751077840741,-191.63373104,0.00019452,2]
[368258334,1751077840751,-833.48,0.00019452,2]
[368258336,1751077840761,-255.74,0.00019452,2]
[368258338,1751077840771,-460.0,0.00019452,2]
[368258340,1751077840780,-471.31133354,0.00019452,2]
[368258342,1751077840790,-460.0,0.00019452,2]
[368258344,1751077840799,-460.0,0.00019452,2]
[368258346,1751077840808,-460.0,0.00019452,2]
[368258348,1751077840817,-851.08,0.00019452,2]
[368258350,1751077840826,-460.0,0.00019452,2]
[368258352,1751077840836,-460.0,0.00019452,2]
[368258354,1751077840845,-512.32862362,0.00019565,2]
[368258356,1751077840854,-441.81580223,0.0001958,2]
[368258358,1751077840863,-504.67766264,0.00019619,2]
[368258360,1751077840872,-500.61487973,0.00019619,2]
[368258361,1751077840881,-500.63139626,0.00019619,2]
[368258363,1751077840891,-503.50287125,0.00019619,2]
[368258365,1751077840900,-501.47527516,0.00019619,2]
[368258367,1751077840909,-500.97448561,0.00019619,2]
[368258369,1751077840919,-508.02982385,0.00019619,2]
[368258371,1751077840929,-500.0,0.00019619,2]
[368258373,1751077840938,-504.31392159,0.00019619,2]
[368258376,1751077840948,-460.0,0.00019726,2]
[368258378,1751077840958,-460.0,0.00019726,2]
[368258379,1751077840967,-460.0,0.00019726,2]
[368258381,1751077840976,-460.0,0.00019726,2]
[368258383,1751077840985,-460.0,0.00019726,2]
[368258385,1751077840995,-465.54266172,0.00019726,2]
[368258387,1751077841004,-252.05293376,0.00019726,2]
[368258389,1751077841014,-460.0,0.00019726,2]
[368258391,1751077841023,-460.0,0.00019726,2]
[368258394,1751077841033,-460.0,0.00019726,2]
[368258395,1751077841042,-460.0,0.00019726,2]
[368258398,1751077841052,-460.0,0.00019726,2]
[368258400,1751077841062,-864.73,0.00019726,2]
[368258402,1751077841072,-499.71570886,0.00019726,2]
[368258403,1751077841082,-480.48,0.00019726,2]
[368258404,1751077841092,-460.0,0.00019726,2]
[368258405,1751077841103,-460.0,0.00019726,2]
[368258406,1751077841113,-475.06528681,0.00019726,2]
[368258407,1751077841123,-1050.91,0.00019726,2]
[368258408,1751077841133,-950.9,0.00019726,2]
[368258409,1751077841143,-619.04,0.00019726,2]
[368258410,1751077841152,-460.0,0.00019726,2]
[368258411,1751077841162,-460.0,0.00019726,2]
[368258412,1751077841171,-460.0,0.00019726,2]
[368258413,1751077841181,-460.0,0.00019726,2]
[368258414,1751077841308,-460.0,0.00019726,2]
[368258415,1751077841337,-460.0,0.00019726,2]
[368258416,1751077841347,-460.0,0.00019726,2]
[368258417,1751077841357,-460.0,0.00019726,2]
[368258418,1751077841368,-460.0,0.00019726,2]
[368258419,1751077841377,-460.0,0.00019726,2]
[368258420,1751077841387,-460.0,0.00019726,2]
[368258421,1751077841396,-352.55,0.00019726,2]
[368258422,1751077841405,-1094.57,0.00019726,2]
[368258423,1751077841415,-830.26,0.00019726,2]
[368258424,1751077841424,-460.0,0.00019726,2]
[368258425,1751077841434,-460.0,0.00019726,2]
[368258426,1751077841445,-460.0,0.00019726,2]
[368258427,1751077841455,-460.0,0.00019726,2]
[368258428,1751077841463,-1073.32,0.00019726,2]
[368258429,1751077841473,-460.0,0.00019726,2]
[368258430,1751077841482,-273.97,0.00019726,2]
[368258431,1751077841495,-801.69,0.00019726,2]
[368258432,1751077841505,-460.0,0.00019726,2]
[368258433,1751077841514,-460.0,0.00019726,2]
[368258434,1751077841524,-460.0,0.00019726,2]
[368258435,1751077841535,-2284.18,0.00019726,2]
[368258436,1751077841547,-460.0,0.00019726,2]
[368258437,1751077841558,-460.0,0.00019726,2]
[368258438,1751077841568,-460.0,0.00019726,2]
[368258439,1751077841577,-238.05,0.00019726,2]
[368258440,1751077841586,-592.17,0.00019726,2]
[368258441,1751077841596,-460.0,0.00019726,2]
[368258442,1751077841606,-460.0,0.00019726,2]
[368258443,1751077841615,-460.0,0.00019726,2]
[368258444,1751077841624,-460.0,0.00019726,2]
[368258445,1751077841633,-460.0,0.00019726,2]
[368258446,1751077841643,-460.0,0.00019726,2]
[368258447,1751077841654,-460.0,0.00019726,2]
[368258448,1751077841667,-460.0,0.00019726,2]
[368258449,1751077841676,-282.32622436,0.00019726,2]
[368258450,1751077841686,-460.0,0.00019726,2]
[368258451,1751077841695,-460.0,0.00019726,2]
[368258452,1751077841704,-460.0,0.00019726,2]
[368258453,1751077841714,-743.7,0.00019726,2]
[368258454,1751077841723,-407.71938233,0.00019726,2]
[368258455,1751077841732,-460.0,0.00019726,2]
[368258456,1751077841742,-460.0,0.00019726,2]
[368258457,1751077841751,-2148.11,0.00019726,2]
[368258458,1751077841761,-166.76932862,0.00019726,2]
[368258459,1751077841770,-460.0,0.00019726,2]
[368258460,1751077841779,-460.0,0.00019726,2]
[368258461,1751077841788,-460.0,0.00019726,2]
[368258462,1751077841797,-460.0,0.00019726,2]
[368258463,1751077841807,-460.0,0.00019726,2]
[368258464,1751077841816,-219.69041136,0.00019726,2]
[368258465,1751077841825,-460.0,0.00019726,2]
[368258466,1751077841834,-460.0,0.00019726,2]
[368258467,1751077841843,-599.49,0.00019726,2]
[368258468,1751077841852,-498.61,0.00019726,2]
[368258469,1751077841862,-460.0,0.00019726,2]
[368258470,1751077841871,-684.07,0.00019726,2]
[368258471,1751077841881,-460.0,0.00019726,2]
[368258472,1751077841890,-686.94,0.00019726,2]
[368258473,1751077841899,-460.0,0.00019726,2]
[368258474,1751077841908,-460.0,0.00019726,2]
[368258475,1751077841919,-750.65,0.00019726,2]
[368258476,1751077841929,-460.0,0.00019726,2]
[368258477,1751077841938,-460.0,0.00019726,2]
[368258478,1751077841947,-833.48,0.00019726,2]
[368258479,1751077841957,-508.84,0.00019726,2]
[368258480,1751077841966,-460.0,0.00019726,2]
[368258481,1751077841976,-460.0,0.00019726,2]
[368258482,1751077841985,-851.08,0.00019726,2]
[368258483,1751077841994,-460.0,0.00019726,2]
[368258484,1751077842003,-460.0,0.00019726,2]
[368258485,1751077842013,-972.35581948,0.000199,2]
[368258486,1751077842023,-5317.56613652,0.000199,2]
[368258487,1751077842033,-460.0,0.0002,2]
[368258488,1751077842042,-460.0,0.0002,2]
[368258489,1751077842051,-510.55,0.0002,2]
[368258490,1751077842061,-460.0,0.0002,2]
[368258491,1751077842070,-470.47598101,0.0002,2]
[368258492,1751077842080,-460.0,0.0002,2]
[368258493,1751077842090,-864.73,0.0002,2]
[368258494,1751077842099,-480.48,0.0002,2]
[368258495,1751077842111,-460.0,0.0002,2]
[368258496,1751077842120,-1050.91,0.0002,2]
[368258497,1751077842130,-950.9,0.0002,2]
[368258498,1751077842141,-619.04,0.0002,2]
[368258499,1751077842151,-252.24815836,0.0002,2]
[368258500,1751077842161,-460.0,0.0002,2]
[368258501,1751077842171,-460.0,0.0002,2]
[368258502,1751077842180,-460.0,0.0002,2]
[368258503,1751077842189,-460.0,0.0002,2]
[368258504,1751077842198,-460.0,0.0002,2]
[368258505,1751077842207,-460.0,0.0002,2]
[368258506,1751077842225,-1094.57,0.0002,2]
[368258507,1751077842235,-830.26,0.0002,2]
[368258508,1751077842245,-460.0,0.0002,2]
[368258509,1751077842257,-1073.32,0.0002,2]
[368258510,1751077842267,-801.69,0.0002,2]
[368258511,1751077842276,-460.0,0.0002,2]
[368258512,1751077842285,-2284.18,0.0002,2]
[368258513,1751077842294,-460.0,0.0002,2]
[368258514,1751077842303,-460.0,0.0002,2]
[368258515,1751077842312,-460.0,0.0002,2]
[368258516,1751077842321,-592.17,0.0002,2]
[368258517,1751077842330,-460.0,0.0002,2]
[368258518,1751077842339,-460.0,0.0002,2]
[368258519,1751077842348,-460.0,0.0002,2]
[368258520,1751077842357,-460.0,0.0002,2]
[368258521,1751077842370,-460.0,0.0002,2]
[368258522,1751077842380,-460.0,0.0002,2]
[368258523,1751077842388,-489.04,0.0002,2]
[368258524,1751077842398,-524.73,0.0002,2]
[368258525,1751077842407,-743.7,0.0002,2]
[368258526,1751077842417,-460.0,0.0002,2]
[368258527,1751077842426,-460.0,0.0002,2]
[368258528,1751077842437,-2148.11,0.0002,2]
[368258529,1751077842447,-460.0,0.0002,2]
[368258530,1751077842458,-460.0,0.0002,2]
[368258531,1751077842467,-460.0,0.0002,2]